Workbook

Sheet Acknowledgement
A1: ACKNOWLEDGEMENT
A3: MDR-TB COST EFFECTIVENESS ANALYSIS TOOL (Version 1)
A4: Copyright © 2012 Management Sciences for Health
D6: The Multi-Drug Resistant TB (MDR-TB) Cost Effectiveness Analysis (CEA) Tool was developed by Management Sciences for Health (MSH), through the USAID-funded TB CARE I Project (Agreement No. AID-OAA-A-10-00020). For information contact dcollins@msh.org or fintools@msh.org

Sheet Menu
A1: MAIN MENU
A2: MDR-TB COST EFFECTIVENESS ANALYSIS TOOL

Sheet Guide
A1: USER GUIDE
A2: =tool_name -> MDR-TB COST EFFECTIVENESS ANALYSIS TOOL
G5: Note: Macros must be ENABLED in order for the tool to function correctly.
G6: Only enter data in the yellow shaded cells.
A8: The Multi-Drug Resistant TB (MDR-TB) Cost Effectiveness Analysis (CEA) Tool was developed by Management Sciences for Health (MSH), through the USAID-funded TB CARE I Project.
A9: The purpose of this tool is to calculate the cost and cost-effectiveness of two different MDR-TB treatment options, based on cost per case cured and cost per death averted.
A11: Worksheet 1: Unit Costs
A12: First, fill in the country, currency name, and currency conversion to USD using cells B4:B6.
A13: Next, fill in the appropriate cost elements and unit costs.
A14: In most cases the unit costs will be the same for both treatment options but you can enter different figures in Comunn D if you want to see the impact of changing prices.
B15: I. Laboratory, Radiology, Diagnostic Tests
C16: Make a list of all possible tests that may be administered in the course of the MDR-TB treatment using column A.
C17: For each test, fill in the appropriate unit (i.e. per test, per x-ray, etc.) using column B.
C18: Fill in the cost per unit in the currency entered in cell B5 using columns C and D
C19: Make note of the source or any comments in the space provided in columns E and F.
B20: II. Drug costs
C21: Follow the same instructions as for section I above, listing all possible drugs provided as part of the MDR-TB drug regimen.
B22: III. Staff costs
C23: Follow the same instructions as for section I above, being careful to link the staff costs to the unit (i.e. cost per doctor minute).
B24: IV. Hospital/health center costs
C25: Follow the same instructions as for section I above, listing all possible hospital and health center costs such as consultations, DOTS, hospitalization days, etc.
A27: Worksheet 2: Diagnosis
A28: Use this worksheet to input the diagnostic methods used for each of the two treatment options that will be compared.
B29: I. MDR-TB Diagnostic tests
C30: Select each element required as part of the MDR-TB diagnosis using the drop-down menu in column A.
C31: If the required element does not appear in the drop-down menu, return to the "Unit Costs" worksheet and add the desired element to the master list.
C32: Refer the unit cost in Columns C and F to the relevant figure in the Unit Costs worksheet.
C33: Input the number of units per element for the first treatment option in column D.
C34: The total cost will automatically populate in column E (multiplication of the unit cost and number of units, column C x column D).
C35: Input the number of units per element for the second treatment option in column F.
C36: The total cost will automatically populate in column H (multiplication of the unit cost and number of units, column G x column F).
B38: Follow the same instructions for section I above, using II. Baseline tests and III. Staff costs.
C39: The total cost per patient of MDR-TB diagnosis for each of the two options will appear automatically in row 45.
C40: The figures in rows 47 and 49 are the total program costs for "all patients excluding transfers out" and for "transfers out".
A41: Worksheet 3: Treatment
A42: Use this worksheet to input the treatment (drug regimen) used for each of the two treatment options that will be compared.
B43: I. Standard drug regimen
C44: Select each drug required as part of the MDR-TB treatment using the drop-down menu in column A.
C45: If the required element does not appear in the drop-down menu, return to the "Unit Costs" worksheet and add the desired element to the master list.
C46: Refer the unit cost in Columns C and F to the relevant figure in the Unit Costs worksheet.
C47: Input the number of units per element for the first treatment option in column D.
C48: The total cost will automatically populate in column E (multiplication of the unit cost and number of units, column D x column E).
C49: Input the number of units per element for the second treatment option in column H.
C50: The total cost will automatically populate in column I (multiplication of the unit cost and number of units, column G x column H).
B52: If additional drug regimens may be provided (i.e. for different resistance profiles), add these in the additional sections as indicated and label each section.
B53: Rows 52-55 should show each of the different drug regimens listed. Use B52:B55 to specify the percentage of patients receiving each type of treatment.
C54: The cost per patient for each treatment option, for each regimen will be automatically calculated, as well as the average overall drug cost in row 56.
B55: Rows 59 through 62 are used to calculate the total costs for patients who complete treatment and for those who do not complete treatment.
C56: Enter the expected average percentage completion of treatment in cells D60 and D62 for Option 1, and in cells G60 and G62 for Option 2.
C57: These percentages reflect the average length of treatment that each patient completes.
A58: Worksheet 4: Treatment Monitoring
A59: Use this worksheet to input the treatment monitoring method used for each of the two treatment options that will be compared.
B60: I. Inpatient stay
C61: Select each element as part of the MDR-TB treatment monitoring using the drop-down menu in column A.
C62: If the required element does not appear in the drop-down menu, return to the "Unit Costs" worksheet and add the desired element to the master list.
C63: Refer the unit cost in Columns D and G to the relevant figure in the Unit Costs worksheet.
C64: Input the number of units per element for the first treatment option in column D.
C65: The total cost will automatically populate in column E (multiplication of the unit cost and number of units, column C x column D).
C66: Input the number of units per element for the second treatment option in column G.
C67: The total cost will automatically populate in column H (multiplication of the unit cost and number of units, column F x column G).
B69: Follow the same instructions for section I above, using II. Outpatient consultations, III. Routine laboratory investigations, and IV. Follow-up MDR-TB testing.
C70: The cost per patient of MDR-TB treatment monitoring for each of the two options will appear automatically in row 56.
B71: Rows 58 though 75 are used to calculate the total program cost for patients not transferred out and for patients transferred out.
C72: Those totals appear in rows 68 and 75.
A73: Worksheet 5: Treatment Outcome
A74: Use this worksheet to input the treatment outcomes that resulted from each of the two treatment options that will be compared.
B75: Input the number of MDR-TB cases in the yearly cohort for the first option in Column B. Enter the total number of MDR-TB patients enrolled in cell B6.
B76: For this cohort, input the number of patients cured, completed treatment, failed, died, defaulted, and transferred out (rows 7 - 13).
C77: The total number should be equal to the original number of MDR-TB cases for the cohort.
B78: Input the number of patients that are HIV+ and HIV- using rows 16 and 17.
B79: Input the estimated MDR-TB self-cure rate for HIV+ and HIV- patients using rows 19 and 20 (see Definitions below).
A85: Worksheet 6: Calculations
A86: This worksheet will be automatically calculated based on the user inputs in the previous worksheets. No data entry required.
B87: A summary of the MDR-TB treatment costs is shown in rows 6-10.
B88: The cost per patient cured and cost per death averted is calculated in the next section (see Definitions above for more details).
A90: Worksheet 7: Results
A91: This worksheet displays the summary results for the cost and cost-effectiveness of the two treatment options analyzed. No data entry required.
B92: The results are shown in USD and the local currency, if applicable.
A94: Definitions
A95: Description | E95: Definition / Calculation
A96: Estimated cure rate that would apply without the availability of MDR-TB treatment | E96: {(estimated % of patients who are HIV+ x 0) + (estimated percentage of patients who are HIV- x 20)} ÷ 100
A97: Average individual cost per patient fully treated / cured | E97: Average cost of fully treating (and curing) one patient
A98: Average program cost per patient fully treated | E98: Average cost of the whole program dividied by the number of patients fully treated
A99: Average program cost per patient cured | E99: Average cost of the whole program dividied by the number of patients cured
A100: Average program cost per death averted | E100: Average cost of the whole program dividied by the number of deaths averted
A102: General Note
A103: Show the references for all data entered into the model.

Sheet Unit Costs
A1: UNIT COSTS
A2: =tool_name -> MDR-TB COST EFFECTIVENESS ANALYSIS TOOL
A4: Country | B4: Indonesia
A5: Currency | B5: IDR
A6: Exchange rate to USD 1 USD = | B6: 9795
A7: Year | B7: 2011
A8: Inflation rate | B8: 0.05
C10: TREATMENT OPTION 1 | D10: TREATMENT OPTION 2 | E10: SOURCES FOR TREATMENT OPTION 1 | F10: SOURCES FOR TREATMENT OPTION 2
A11: Element | B11: Unit | C11: ="Cost per Unit ("&currency&")" -> Cost per Unit (IDR) | D11: ="Cost per Unit ("&currency&")" -> Cost per Unit (IDR) | E11: Source / Comment | F11: Source / Comment
A12: I. Laboratory, Radiology, Diagnostic Tests
A13: Audiometry test | B13: test | C13: 120000 | D13: =+C13 -> 120000 | E13: "px baseline konfirm mdr" Moewardi's files | F13: "px baseline konfirm mdr" Moewardi's files
A14: Blood glucose | B14: test | C14: 4369.07 | D14: 4369.07 | E14: unit cost rsup 2011 -> jasa sarana lab 2010 -> sheet 1 From Soeradji's file | F14: unit cost rsup 2011 -> jasa sarana lab 2010 -> sheet 1 From Soeradji's file
A15: BTA smear | B15: test | C15: 5605.81 | D15: 5605.81
A16: Creatinin | B16: test | C16: 2300.84 | D16: 2300.84
A17: Culture - Liquid | B17: test | C17: 300000 | D17: 300000
A18: Culture - Solid | B18: test | C18: 225000 | D18: 225000 | E18: according to ibu ratna's statement (Moewardi Notes - MDR TB Data Collection file) | F18: according to ibu ratna's statement (Moewardi Notes - MDR TB Data Collection file)
A19: DST - Liquid culture | B19: test | C19: 150000 | D19: 150000
A20: DST - Solid culture | B20: test | C20: 150000 | D20: 150000
A21: ECG | B21: test | C21: 16937.91 | D21: 16937.91 | E21: soeradji's | F21: soeradji's
A22: Electrolyte | B22: test | C22: 41000 | D22: 41000 | E22: tariff | F22: tariff
A23: ENT consultation | B23: test | C23: 28000 | D23: 28000 | E23: "px baseline konfirm mdr" Moewardi's files | F23: "px baseline konfirm mdr" Moewardi's files
A24: GDS | B24: test | C24: 13833.76 | D24: 13833.76
A25: GeneXpert | B25: test | C25: =17*currency_conversion -> 166515 | D25: 166515 | E25: According to Ibu Ratna | F25: According to Ibu Ratna
A26: GeneXpert for Initial Negative Result | B26: test | C26: =17*currency_conversion -> 166515 | D26: 166515 | E26: approx 25% of cases are negative | F26: approx 25% of cases are negative
A27: HbsAg | B27: test | C27: 40003.09 | D27: 40003.09
A28: HIV Test | B28: test | C28: 43600 | D28: 43600 | E28: tariff | F28: tariff
A29: PP test | B29: test | C29: 25147.02 | D29: 25147.02
A30: Pregnancy test | B30: test | C30: 23514.94 | D30: 23514.94 | E30: "klaim rawat jalan -03- pengobatan rutin mdr 2011" | F30: "klaim rawat jalan -03- pengobatan rutin mdr 2011"
A31: Psychiatry consultation | B31: test | C31: 28000 | D31: 28000 | E31: "px baseline konfirm mdr" Moewardi's files | F31: "px baseline konfirm mdr" Moewardi's files
A32: SGOT | B32: test | C32: 9064.1 | D32: 9064.1
A33: SGPT | B33: test | C33: 9064.1 | D33: 9064.1
A34: Sputum smear | B34: smear | C34: 4502.76 | D34: 4502.76 | E34: soeradji's unit cost | F34: soeradji's unit cost
A35: Thorax AP/Lat | B35: test | C35: 42616.49 | D35: 42616.49
A36: Thyroid Stimulating Hormone | B36: test | C36: 87600 | D36: 87600 | E36: tariff | F36: tariff
A37: Total Bilirubin | B37: test | C37: 19169.06 | D37: 19169.06
A38: TSH | B38: test | D38: 0
A39: Ureum | B39: test | C39: 6382.44 | D39: =+C39 -> 6382.44
A40: Uric acid | B40: test | C40: 10334.72 | D40: =+C40 -> 10334.72
A41: X-ray | B41: x-ray | C41: 42616.49 | D41: 42616.49 | E41: soeradji's unit cost | F41: soeradji's unit cost
A43: II. Drug costs
A44: Capreomycin 1 g | B44: per vial | C44: =8*currency_conversion -> 78360 | D44: =+C44 -> 78360 | E44: Global Drug Facility Stop TB Partnership | F44: Global Drug Facility Stop TB Partnership
A45: Cicloserin 250 mg | B45: per capsule | C45: =0.5995*currency_conversion -> 5872.1025 | D45: 5872.1025 | E45: Global Drug Facility Stop TB Partnership | F45: Global Drug Facility Stop TB Partnership
A46: Ethambutol 400 mg | B46: per tab | C46: =0.02723*currency_conversion -> 266.71785 | D46: 266.71785 | E46: Global Drug Facility Stop TB Partnership | F46: Global Drug Facility Stop TB Partnership
A47: Ethionamide 250 mg | B47: per tab | C47: =0.0825*currency_conversion -> 808.0875 | D47: 808.0875 | E47: Global Drug Facility Stop TB Partnership | F47: Global Drug Facility Stop TB Partnership
A48: Kanamycin 1 g vial | B48: per vial | C48: =2.58*currency_conversion -> 25271.1 | D48: 25271.1 | E48: Global Drug Facility Stop TB Partnership | F48: Global Drug Facility Stop TB Partnership
A49: Levofloxacin 250 mg | B49: per caplet | C49: =0.055*currency_conversion -> 538.725 | D49: 538.725 | E49: Global Drug Facility Stop TB Partnership | F49: Global Drug Facility Stop TB Partnership
A50: Pirazinamide 400 mg | B50: per tab | C50: =0.016*currency_conversion -> 156.72 | D50: 156.72 | E50: Global Drug Facility Stop TB Partnership | F50: Global Drug Facility Stop TB Partnership
A51: Pirazinamide 500 mg | B51: per tab | C51: =0.016*currency_conversion -> 156.72 | D51: 156.72 | E51: Global Drug Facility Stop TB Partnership | F51: Global Drug Facility Stop TB Partnership
A52: Pyridoxin 10 mg | B52: per tab | C52: =0.005*currency_conversion -> 48.975 | D52: 48.975 | E52: Global Drug Facility Stop TB Partnership | F52: Global Drug Facility Stop TB Partnership
A54: III. Staff costs
A55: Doctor - GP (Hospital) | B55: per minute | C55: 1524 | D55: =+C55 -> 1524 | E55: costing study result p 56 (GP cost per minute in size efficient hosp) | F55: costing study result p 56 (GP cost per minute in size efficient hosp)
A56: Doctor - GP (Health Center) | B56: per minute | C56: 342.3324119 | D56: 342.3324119 | E56: using costing study data for GP. Assuming 40 hours/week (5 days work/week) for 24 months | F56: using costing study data for GP. Assuming 40 hours/week (5 days work/week) for 24 months
A57: Doctor - Internist | B57: per minute | C57: 1887.11822 | D57: 1887.11822 | E57: using costing study data for GP & Internist. Assuming the average clinical time is 3.5 hours/day, 22 days/month for 24 months | F57: using costing study data for GP & Internist. Assuming the average clinical time is 3.5 hours/day, 22 days/month for 24 months
A58: Doctor - Specialist | B58: per minute | C58: 2998.252676 | D58: 2998.252676 | E58: specialist doctors. Assuming 3.5 hours/day, 22 days/month for 24 months | F58: specialist doctors. Assuming 3.5 hours/day, 22 days/month for 24 months
A59: Lab technician | B59: per minute | C59: 283 | D59: 283 | E59: ibi | F59: ibi
A60: Nurse | B60: per minute | C60: 249.78 | D60: 249.78 | E60: using costing study data. Assuming 40 hours/week (5 days work/week) for 24 months | F60: using costing study data. Assuming 40 hours/week (5 days work/week) for 24 months
A61: X-ray technician | B61: per minute | C61: 307 | D61: 307 | E61: costing study further analyzed | F61: costing study further analyzed
A63: IV. Hospital / health center costs
A64: Consultation at Health center/satellite clinic | B64: per visit | C64: =30*342.332411918467 -> 10269.97236 | D64: =+C64 -> 10269.97236 | E64: Health Center GP cost per minute x 30 minute consultation | F64: Health Center GP cost per minute x 30 minute consultation
A65: Consultation at Hospital | B65: per visit | C65: =30*1887.11822042822 -> 56613.54661 | D65: 56613.54661 | E65: Hospital GP cost per minute x 30 minute consultation | F65: Hospital GP cost per minute x 30 minute consultation
A66: DOTS at Health center / satellite clinic | B66: per DOTS visit | C66: =30*249.78 -> 7493.4 | D66: 7493.4 | E66: Nurse cost per minute x 30 minutes per DOTS visit | F66: Nurse cost per minute x 30 minutes per DOTS visit
A67: DOTS at Hospital | B67: per DOTS visit | C67: =30*249.78 -> 7493.4 | D67: 7493.4 | E67: Nurse cost per minute x 30 minutes per DOTS visit | F67: Nurse cost per minute x 30 minutes per DOTS visit
A68: Inpatient hospitalization | B68: per bed day | C68: 546449.22 | D68: 546449.22 | E68: using costing study result : inpatient day, excluding staffing cost + equipment + capital | F68: using costing study result : inpatient day, excluding staffing cost + equipment + capital
A69: N95 Mask | B69: per mask | C69: =3*currency_conversion -> 29385 | D69: 29385 | E69: average cost of 3M N95 9210 mask (web search) | F69: average cost of 3M N95 9210 mask (web search)
A70: Patient travel stipend | B70: per month per patient | C70: 400000 | D70: 600000 | E70: Interview with Moewardi Hospital | F70: What-if analysis

Sheet Diagnosis
A1: DIAGNOSIS
A2: =tool_name -> MDR-TB COST EFFECTIVENESS ANALYSIS TOOL
C4: TREATMENT OPTION 1 | F4: TREATMENT OPTION 2
A5: Element | B5: Unit Description | C5: ="Unit Cost ("&currency&")" -> Unit Cost (IDR) | D5: Units per Patient per MDR-TB Treatment | E5: ="Total Cost ("&currency&")" -> Total Cost (IDR) | F5: ="Unit Cost ("&currency&")" -> Unit Cost (IDR) | G5: Units per Patient per MDR-TB Treatment | H5: ="Total Cost ("&currency&")" -> Total Cost (IDR)
A6: I. MDR-TB Diagnostic tests
A7: Sputum smear | B7: =IF(A7="","",VLOOKUP(A7,cost_lookup,2,FALSE)) -> smear | C7: =+'Unit Costs'!C34 -> 4502.76 | D7: 1 | E7: =$C7*D7 -> 4502.76 | F7: =+'Unit Costs'!D34 -> 4502.76 | G7: 1 | H7: =$F7*G7 -> 4502.76
A8: X-ray | B8: x-ray | C8: =+'Unit Costs'!C41 -> 42616.49 | D8: 1 | E8: =$C8*D8 -> 42616.49 | F8: =+'Unit Costs'!D41 -> 42616.49 | G8: 1 | H8: =$F8*G8 -> 42616.49
A9: GeneXpert | B9: test | C9: =+'Unit Costs'!C25 -> 166515 | D9: 1 | E9: 166515 | F9: =+'Unit Costs'!D25 -> 166515 | G9: 1 | H9: 166515
A10: GeneXpert for Initial Negative Result | B10: test | C10: =+'Unit Costs'!C26 -> 166515 | D10: 0.25 | E10: 41628.75 | F10: =+'Unit Costs'!D26 -> 166515 | G10: 0.25 | H10: 41628.75
A11: Culture - Liquid | B11: test | C11: =+'Unit Costs'!C17 -> 300000 | D11: 0.25 | E11: 75000 | F11: =+'Unit Costs'!D17 -> 300000 | G11: 0.25 | H11: 75000
A12: DST - Liquid culture | B12: test | C12: =+'Unit Costs'!C19 -> 150000 | D12: 0.25 | E12: 37500 | F12: =+'Unit Costs'!D19 -> 150000 | G12: 0.25 | H12: 37500
A13: Culture - Solid | B13: test | C13: =+'Unit Costs'!C18 -> 225000 | D13: 0.75 | E13: 168750 | F13: =+'Unit Costs'!D18 -> 225000 | G13: 0.75 | H13: 168750
A14: DST - Solid culture | B14: test | C14: =+'Unit Costs'!C20 -> 150000 | D14: 0.75 | E14: 112500 | F14: =+'Unit Costs'!D20 -> 150000 | G14: 0.75 | H14: 112500
C15: =IF(A15="",0,VLOOKUP(A15,cost_lookup,3,FALSE)) -> 0 | E15: 0 | F15: =IF(B15="",0,VLOOKUP(B15,cost_lookup,3,FALSE)) -> 0 | H15: 0
C16: 0 | E16: 0 | F16: =IF(B16="",0,VLOOKUP(B16,cost_lookup,3,FALSE)) -> 0 | H16: 0
A17: II. Baseline tests
A18: Audiometry test | B18: =IF(A18="","",VLOOKUP(A18,cost_lookup,2,FALSE)) -> test | C18: =+'Unit Costs'!C13 -> 120000 | D18: 1 | E18: =$C18*D18 -> 120000 | F18: =+'Unit Costs'!D13 -> 120000 | G18: 1 | H18: =$F18*G18 -> 120000
A19: ECG | B19: test | C19: =+'Unit Costs'!C21 -> 16937.91 | D19: 1 | E19: =$C19*D19 -> 16937.91 | F19: =+'Unit Costs'!D21 -> 16937.91 | G19: 1 | H19: 16937.91
A20: Psychiatry consultation | B20: test | C20: =+'Unit Costs'!C31 -> 28000 | D20: 1 | E20: 28000 | F20: =+'Unit Costs'!D31 -> 28000 | G20: 1 | H20: 28000
A21: ENT consultation | B21: test | C21: =+'Unit Costs'!C23 -> 28000 | D21: 1 | E21: 28000 | F21: =+'Unit Costs'!D23 -> 28000 | G21: 1 | H21: 28000
A22: Blood glucose | B22: test | C22: =+'Unit Costs'!C14 -> 4369.07 | D22: 1 | E22: 4369.07 | F22: =+'Unit Costs'!D14 -> 4369.07 | G22: 1 | H22: 4369.07
A23: Total Bilirubin | B23: test | C23: =+'Unit Costs'!C37 -> 19169.06 | D23: 1 | E23: 19169.06 | F23: =+'Unit Costs'!D37 -> 19169.06 | G23: 1 | H23: 19169.06
A24: SGOT | B24: test | C24: =+'Unit Costs'!C32 -> 9064.1 | D24: 1 | E24: 9064.1 | F24: =+'Unit Costs'!D32 -> 9064.1 | G24: 1 | H24: 9064.1
A25: SGPT | B25: test | C25: =+'Unit Costs'!C33 -> 9064.1 | D25: 1 | E25: 9064.1 | F25: =+'Unit Costs'!D33 -> 9064.1 | G25: 1 | H25: 9064.1
A26: Creatinin | B26: test | C26: =+'Unit Costs'!C16 -> 2300.84 | D26: 1 | E26: 2300.84 | F26: =+'Unit Costs'!D16 -> 2300.84 | G26: 1 | H26: 2300.84
A27: Ureum | B27: test | C27: =+'Unit Costs'!C39 -> 6382.44 | D27: 1 | E27: 6382.44 | F27: =+'Unit Costs'!D39 -> 6382.44 | G27: 1 | H27: 6382.44
A28: Uric acid | B28: test | C28: =+'Unit Costs'!C40 -> 10334.72 | D28: 1 | E28: 10334.72 | F28: =+'Unit Costs'!D40 -> 10334.72 | G28: 1 | H28: 10334.72
A29: Electrolyte | B29: test | C29: =+'Unit Costs'!C22 -> 41000 | D29: 1 | E29: 41000 | F29: =+'Unit Costs'!D22 -> 41000 | G29: 1 | H29: 41000
A30: Thyroid Stimulating Hormone | B30: test | C30: =+'Unit Costs'!C36 -> 87600 | D30: 1 | E30: 87600 | F30: =+'Unit Costs'!D36 -> 87600 | G30: 1 | H30: 87600
A31: HbsAg | B31: test | C31: =+'Unit Costs'!C27 -> 40003.09 | D31: 1 | E31: 40003.09 | F31: =+'Unit Costs'!D27 -> 40003.09 | G31: 1 | H31: 40003.09
A32: HIV Test | B32: test | C32: =+'Unit Costs'!C28 -> 43600 | D32: 1 | E32: 43600 | F32: =+'Unit Costs'!D28 -> 43600 | G32: 1 | H32: 43600
A33: Pregnancy test | B33: test | C33: =+'Unit Costs'!C30 -> 23514.94 | D33: 0.5 | E33: 11757.47 | F33: =+'Unit Costs'!D30 -> 23514.94 | G33: 0.5 | H33: 11757.47
C34: =IF(A34="",0,VLOOKUP(A34,cost_lookup,3,FALSE)) -> 0 | E34: 0 | F34: =IF(B34="",0,VLOOKUP(B34,cost_lookup,3,FALSE)) -> 0 | H34: 0
C35: 0 | E35: 0 | F35: =IF(B35="",0,VLOOKUP(B35,cost_lookup,3,FALSE)) -> 0 | H35: 0
C36: 0 | E36: 0 | F36: =IF(B36="",0,VLOOKUP(B36,cost_lookup,3,FALSE)) -> 0 | H36: 0
C37: 0 | E37: 0 | F37: =IF(B37="",0,VLOOKUP(B37,cost_lookup,3,FALSE)) -> 0 | H37: 0
A38: III. Staff costs
A39: Doctor - GP (Hospital) | B39: =IF(A39="","",VLOOKUP(A39,cost_lookup,2,FALSE)) -> per minute | C39: =+'Unit Costs'!C55 -> 1524 | D39: 30 | E39: =$C39*D39 -> 45720 | F39: =+'Unit Costs'!D55 -> 1524 | G39: 30 | H39: 45720
A40: X-ray technician | B40: =IF(A40="","",VLOOKUP(A40,cost_lookup,2,FALSE)) -> per minute | C40: =+'Unit Costs'!C61 -> 307 | D40: 30 | E40: =$C40*D40 -> 9210 | F40: =+'Unit Costs'!D61 -> 307 | G40: 30 | H40: 9210
A41: Lab technician | B41: =IF(A41="","",VLOOKUP(A41,cost_lookup,2,FALSE)) -> per minute | C41: =+'Unit Costs'!C59 -> 283 | D41: 120 | E41: 33960 | F41: =+'Unit Costs'!D59 -> 283 | G41: 120 | H41: 33960
A42: Doctor - Specialist | B42: =IF(A42="","",VLOOKUP(A42,cost_lookup,2,FALSE)) -> per minute | C42: =+'Unit Costs'!C58 -> 2998.252676 | D42: 15 | E42: 44973.79014 | F42: =+'Unit Costs'!D58 -> 2998.252676 | G42: 15 | H42: 44973.79014
B43: =IF(A43="","",VLOOKUP(A43,cost_lookup,2,FALSE)) ->  | C43: =IF(A43="",0,VLOOKUP(A43,cost_lookup,3,FALSE)) -> 0 | E43: 0 | F43: =IF(B43="",0,VLOOKUP(B43,cost_lookup,3,FALSE)) -> 0 | H43: 0
A45: TOTAL DIAGNOSIS COST PER PATIENT TESTED | E45: =SUM(E7:E43) -> 1260459.59 | H45: =SUM(H7:H43) -> 1260459.59
A47: TOTAL DIAGNOSIS COST FOR ALL PATIENTS EXLCUDING TRANSFERS OUT | D47: =+'Treatment Outcome'!B12 -> 136 | E47: =+E45*D47 -> 171422504.3 | G47: =+'Treatment Outcome'!C12 -> 136 | H47: =+H45*G47 -> 171422504.3
A49: TOTAL DIAGNOSIS COST FOR ALL PATIENTS EXLCUDING TRANSFERS OUT | D49: =+'Treatment Outcome'!B13 -> 8 | E49: =+E45*D49 -> 10083676.72 | G49: =+'Treatment Outcome'!C13 -> 8 | H49: =+H45*G49 -> 10083676.72

Sheet Treatment
A1: TREATMENT
A2: =tool_name -> MDR-TB COST EFFECTIVENESS ANALYSIS TOOL
D4: TREATMENT OPTION 1 | G4: TREATMENT OPTION 2
A5: Element | B5: Unit Description | C5: Do not delete this column | D5: ="Unit Cost ("&currency&")" -> Unit Cost (IDR) | E5: Units per Patient per MDR-TB Treatment | F5: ="Total Cost ("&currency&")" -> Total Cost (IDR) | G5: ="Unit Cost ("&currency&")" -> Unit Cost (IDR) | H5: Units per Patient per MDR-TB Treatment | I5: ="Total Cost ("&currency&")" -> Total Cost (IDR)
A6: I. Standard drug regimen
A7: Ethambutol 400 mg | B7: =IF(A7="","",VLOOKUP(A7,cost_lookup,2,FALSE)) -> per tab | D7: =+'Unit Costs'!C46 -> 266.71785 | E7: 2190 | F7: =$D7*E7 -> 584112.0915 | G7: =+'Unit Costs'!D46 -> 266.71785 | H7: 2190 | I7: =$G7*H7 -> 584112.0915
A8: Pirazinamide 400 mg | B8: per tab | D8: =+'Unit Costs'!C51 -> 156.72 | E8: 2555 | F8: =$D8*E8 -> 400419.6 | G8: =+'Unit Costs'!D51 -> 156.72 | H8: 2555 | I8: =$G8*H8 -> 400419.6
A9: Kanamycin 1 g vial | B9: per vial | D9: =+'Unit Costs'!C48 -> 25271.1 | E9: 200 | F9: 5054220 | G9: =+'Unit Costs'!D48 -> 25271.1 | H9: 200 | I9: 5054220
A10: Levofloxacin 250 mg | B10: per caplet | D10: =+'Unit Costs'!C49 -> 538.725 | E10: 2190 | F10: 1179807.75 | G10: =+'Unit Costs'!D49 -> 538.725 | H10: 2190 | I10: 1179807.75
A11: Ethionamide 250 mg | B11: per tab | D11: =+'Unit Costs'!C47 -> 808.0875 | E11: 1460 | F11: 1179807.75 | G11: =+'Unit Costs'!D47 -> 808.0875 | H11: 1460 | I11: 1179807.75
A12: Cicloserin 250 mg | B12: per capsule | D12: =+'Unit Costs'!C45 -> 5872.1025 | E12: 1460 | F12: 8573269.65 | G12: =+'Unit Costs'!D45 -> 5872.1025 | H12: 1460 | I12: 8573269.65
A13: Pyridoxin 10 mg | B13: per tab | D13: =+'Unit Costs'!C52 -> 48.975 | E13: 1460 | F13: 71503.5 | G13: =+'Unit Costs'!D52 -> 48.975 | H13: 1460 | I13: 71503.5
D14: =IF(A14="",0,VLOOKUP(A14,cost_lookup,3,FALSE)) -> 0 | F14: 0 | G14: =IF(B14="",0,VLOOKUP(B14,cost_lookup,3,FALSE)) -> 0 | I14: 0
D15: =IF(A15="",0,VLOOKUP(A15,cost_lookup,3,FALSE)) -> 0 | F15: 0 | G15: =IF(B15="",0,VLOOKUP(B15,cost_lookup,3,FALSE)) -> 0 | I15: 0
D16: =IF(A16="",0,VLOOKUP(A16,cost_lookup,3,FALSE)) -> 0 | F16: 0 | G16: =IF(B16="",0,VLOOKUP(B16,cost_lookup,3,FALSE)) -> 0 | I16: 0
A17: II. Ethambutol resistant drug regimen
A18: Pirazinamide 400 mg | B18: =IF(A18="","",VLOOKUP(A18,cost_lookup,2,FALSE)) -> per tab | D18: =+'Unit Costs'!C50 -> 156.72 | E18: 2555 | F18: =$D18*E18 -> 400419.6 | G18: =+'Unit Costs'!D50 -> 156.72 | H18: 2555 | I18: =$G18*H18 -> 400419.6
A19: Kanamycin 1 g vial | B19: per vial | D19: =+'Unit Costs'!C48 -> 25271.1 | E19: 200 | F19: =$D19*E19 -> 5054220 | G19: =+'Unit Costs'!D48 -> 25271.1 | H19: 200 | I19: 5054220
A20: Levofloxacin 250 mg | B20: per caplet | D20: =+'Unit Costs'!C49 -> 538.725 | E20: 2190 | F20: =$D20*E20 -> 1179807.75 | G20: =+'Unit Costs'!D49 -> 538.725 | H20: 2190 | I20: 1179807.75
A21: Ethionamide 250 mg | B21: per tab | D21: =+'Unit Costs'!C47 -> 808.0875 | E21: 1460 | F21: =$D21*E21 -> 1179807.75 | G21: =+'Unit Costs'!D47 -> 808.0875 | H21: 1460 | I21: 1179807.75
A22: Cicloserin 250 mg | B22: per capsule | D22: =+'Unit Costs'!C45 -> 5872.1025 | E22: 1460 | F22: =$D22*E22 -> 8573269.65 | G22: =+'Unit Costs'!D45 -> 5872.1025 | H22: 1460 | I22: 8573269.65
A23: Pyridoxin 10 mg | B23: per tab | D23: =+'Unit Costs'!C52 -> 48.975 | E23: 1460 | F23: =$D23*E23 -> 71503.5 | G23: =+'Unit Costs'!D52 -> 48.975 | H23: 1460 | I23: 71503.5
D24: =IF(A24="",0,VLOOKUP(A24,cost_lookup,3,FALSE)) -> 0 | F24: =$D24*E24 -> 0 | G24: =IF(B24="",0,VLOOKUP(B24,cost_lookup,3,FALSE)) -> 0 | I24: 0
D25: =IF(A25="",0,VLOOKUP(A25,cost_lookup,3,FALSE)) -> 0 | F25: =$D25*E25 -> 0 | G25: =IF(B25="",0,VLOOKUP(B25,cost_lookup,3,FALSE)) -> 0 | I25: 0
D26: =IF(A26="",0,VLOOKUP(A26,cost_lookup,3,FALSE)) -> 0 | F26: =$D26*E26 -> 0 | G26: =IF(B26="",0,VLOOKUP(B26,cost_lookup,3,FALSE)) -> 0 | I26: 0
D27: =IF(A27="",0,VLOOKUP(A27,cost_lookup,3,FALSE)) -> 0 | F27: =$D27*E27 -> 0 | G27: =IF(B27="",0,VLOOKUP(B27,cost_lookup,3,FALSE)) -> 0 | I27: 0
A28: III. Kanamycin Treatment Before
A29: Ethambutol 400 mg | B29: =IF(A29="","",VLOOKUP(A29,cost_lookup,2,FALSE)) -> per tab | D29: =+'Unit Costs'!C46 -> 266.71785 | E29: 2190 | F29: =$D29*E29 -> 584112.0915 | G29: =+'Unit Costs'!D46 -> 266.71785 | H29: 2190 | I29: =$G29*H29 -> 584112.0915
A30: Pirazinamide 500 mg | B30: per tab | D30: =+'Unit Costs'!C51 -> 156.72 | E30: 2555 | F30: =$D30*E30 -> 400419.6 | G30: =+'Unit Costs'!D51 -> 156.72 | H30: 2555 | I30: 400419.6
A31: Capreomycin 1 g | B31: per vial | D31: =+'Unit Costs'!C44 -> 78360 | E31: 200 | F31: =$D31*E31 -> 15672000 | G31: =+'Unit Costs'!D44 -> 78360 | H31: 200 | I31: 15672000
A32: Levofloxacin 250 mg | B32: per caplet | D32: =+'Unit Costs'!C49 -> 538.725 | E32: 2190 | F32: =$D32*E32 -> 1179807.75 | G32: =+'Unit Costs'!D49 -> 538.725 | H32: 2190 | I32: 1179807.75
A33: Ethionamide 250 mg | B33: per tab | D33: =+'Unit Costs'!C47 -> 808.0875 | E33: 1460 | F33: =$D33*E33 -> 1179807.75 | G33: =+'Unit Costs'!D47 -> 808.0875 | H33: 1460 | I33: 1179807.75
A34: Cicloserin 250 mg | B34: per capsule | D34: =+'Unit Costs'!C45 -> 5872.1025 | E34: 1460 | F34: =$D34*E34 -> 8573269.65 | G34: =+'Unit Costs'!D45 -> 5872.1025 | H34: 1460 | I34: 8573269.65
A35: Pyridoxin 10 mg | B35: per tab | D35: =+'Unit Costs'!C52 -> 48.975 | E35: 1460 | F35: =$D35*E35 -> 71503.5 | G35: =+'Unit Costs'!D52 -> 48.975 | H35: 1460 | I35: 71503.5
D36: =IF(A36="",0,VLOOKUP(A36,cost_lookup,3,FALSE)) -> 0 | F36: =$D36*E36 -> 0 | G36: =IF(B36="",0,VLOOKUP(B36,cost_lookup,3,FALSE)) -> 0 | I36: 0
D37: =IF(A37="",0,VLOOKUP(A37,cost_lookup,3,FALSE)) -> 0 | F37: =$D37*E37 -> 0 | G37: =IF(B37="",0,VLOOKUP(B37,cost_lookup,3,FALSE)) -> 0 | I37: 0
D38: =IF(A38="",0,VLOOKUP(A38,cost_lookup,3,FALSE)) -> 0 | F38: =$D38*E38 -> 0 | G38: =IF(B38="",0,VLOOKUP(B38,cost_lookup,3,FALSE)) -> 0 | I38: 0
A39: IV. Quinolone Treatment Before
A40: Ethambutol 400 mg | B40: =IF(A40="","",VLOOKUP(A40,cost_lookup,2,FALSE)) -> per tab | D40: =+'Unit Costs'!C46 -> 266.71785 | E40: 2190 | F40: =$D40*E40 -> 584112.0915 | G40: =+'Unit Costs'!D46 -> 266.71785 | H40: 2190 | I40: =$G40*H40 -> 584112.0915
A41: Pirazinamide 500 mg | B41: per tab | D41: =+'Unit Costs'!C51 -> 156.72 | E41: 2555 | F41: =$D41*E41 -> 400419.6 | G41: =+'Unit Costs'!D51 -> 156.72 | H41: 2555 | I41: 400419.6
A42: Kanamycin 1 g vial | B42: per vial | D42: =+'Unit Costs'!C48 -> 25271.1 | E42: 200 | F42: =$D42*E42 -> 5054220 | G42: =+'Unit Costs'!D48 -> 25271.1 | H42: 200 | I42: 5054220
A43: Levofloxacin 250 mg | B43: per caplet | D43: =+'Unit Costs'!C49 -> 538.725 | E43: 2920 | F43: =$D43*E43 -> 1573077 | G43: =+'Unit Costs'!D49 -> 538.725 | H43: 2920 | I43: 1573077
A44: Ethionamide 250 mg | B44: per tab | D44: =+'Unit Costs'!C47 -> 808.0875 | E44: 1460 | F44: =$D44*E44 -> 1179807.75 | G44: =+'Unit Costs'!D47 -> 808.0875 | H44: 1460 | I44: 1179807.75
A45: Cicloserin 250 mg | B45: per capsule | D45: =+'Unit Costs'!C45 -> 5872.1025 | E45: 1460 | F45: =$D45*E45 -> 8573269.65 | G45: =+'Unit Costs'!D45 -> 5872.1025 | H45: 1460 | I45: 8573269.65
A46: Pyridoxin 10 mg | B46: per tab | D46: =+'Unit Costs'!C52 -> 48.975 | E46: 1460 | F46: =$D46*E46 -> 71503.5 | G46: =+'Unit Costs'!D52 -> 48.975 | H46: 1460 | I46: 71503.5
D47: =IF(A47="",0,VLOOKUP(A47,cost_lookup,3,FALSE)) -> 0 | F47: =$D47*E47 -> 0 | G47: =IF(B47="",0,VLOOKUP(B47,cost_lookup,3,FALSE)) -> 0 | I47: 0
D48: =IF(A48="",0,VLOOKUP(A48,cost_lookup,3,FALSE)) -> 0 | F48: =$D48*E48 -> 0 | G48: =IF(B48="",0,VLOOKUP(B48,cost_lookup,3,FALSE)) -> 0 | I48: 0
D49: =IF(A49="",0,VLOOKUP(A49,cost_lookup,3,FALSE)) -> 0 | F49: =$D49*E49 -> 0 | G49: =IF(B49="",0,VLOOKUP(B49,cost_lookup,3,FALSE)) -> 0 | I49: 0
A51: REGIMENS | B51: OPTION 1 | C51: OPTION 2
A52: =A6 -> I. Standard drug regimen | B52: 0.75 | C52: 0.75 | F52: =SUM(F7:F16)*$B52 -> 12782355.26 | I52: =SUM(I7:I16)*$C52 -> 12782355.26
A53: =A17 -> II. Ethambutol resistant drug regimen | B53: 0.15 | C53: 0.15 | F53: =SUM(F8:F17)*$B53 -> 2468854.237 | I53: =SUM(I8:I17)*$C53 -> 2468854.237
A54: =A28 -> III. Kanamycin Treatment Before | B54: 0.05 | C54: 0.05 | F54: =SUM(F9:F18)*$B54 -> 822951.4125 | I54: =SUM(I9:I18)*$C54 -> 822951.4125
A55: =A39 -> IV. Quinolone Treatment Before | B55: 0.05 | C55: 0.05 | F55: =SUM(F10:F19)*$B55 -> 822951.4125 | I55: =SUM(I10:I19)*$C55 -> 822951.4125
A56: AVERAGE TREATMENT COST | F56: =SUM(F52:F55) -> 16897112.32 | I56: =SUM(I52:I55) -> 16897112.32
A58: TOTAL TREATMENT COST | D58: TREATMENT OPTION 1 | G58: TREATMENT OPTION 2
A59: Patients who completed treatment | D59: 1 | E59: =+'Treatment Outcome'!B7+'Treatment Outcome'!B8+'Treatment Outcome'!B9 -> 100 | F59: =+F56*E59*D59 -> 1689711232 | G59: 1 | H59: =+'Treatment Outcome'!C7+'Treatment Outcome'!C8+'Treatment Outcome'!C9 -> 107.168 | I59: =+I56*H59*G59 -> 1810829733
A60: Patients who did not complete treatment (assumed 50% completion) | B60: EXPLAIN IN GUIDE | D60: 0.5 | E60: =+'Treatment Outcome'!B10+'Treatment Outcome'!B11 -> 36 | F60: =+F56*E60*D60 -> 304148021.7 | G60: 0.5 | H60: =+'Treatment Outcome'!C10+'Treatment Outcome'!C11 -> 28.832 | I60: =+I56*H60*G60 -> 243588771.2
A61: Sub-total | E61: =+SUM(E59:E60) -> 136 | F61: =+SUM(F59:F60) -> 1993859254 | H61: =+SUM(H59:H60) -> 136 | I61: =+SUM(I59:I60) -> 2054418504
A62: Patients who transferred out | D62: 0.5 | E62: =+'Treatment Outcome'!B13 -> 8 | F62: =+F56*D62*E62 -> 67588449.27 | G62: 0.5 | H62: =+'Treatment Outcome'!C13 -> 8 | I62: =+I56*G62*H62 -> 67588449.27
A63: Total | E63: =+E61+E62 -> 144 | F63: =+F61+F62 -> 2061447703 | H63: =+H61+H62 -> 144 | I63: =+I61+I62 -> 2122006953

Sheet Treatment Monitoring
A1: TREATMENT MONITORING
A2: =tool_name -> MDR-TB COST EFFECTIVENESS ANALYSIS TOOL
C4: TREATMENT OPTION 1 | F4: TREATMENT OPTION 2
A5: Element | B5: Unit Description | C5: ="Unit Cost ("&currency&")" -> Unit Cost (IDR) | D5: Units per Patient per MDR-TB Treatment | E5: ="Total Cost ("&currency&")" -> Total Cost (IDR) | F5: ="Unit Cost ("&currency&")" -> Unit Cost (IDR) | G5: Units per Patient per MDR-TB Treatment | H5: ="Total Cost ("&currency&")" -> Total Cost (IDR)
A6: I. Inpatient stay
A7: Inpatient hospitalization | B7: =IF(A7="","",VLOOKUP(A7,cost_lookup,2,FALSE)) -> per bed day | C7: =+'Unit Costs'!C68 -> 546449.22 | D7: 24 | E7: =$C7*D7 -> 13114781.28 | F7: =+'Unit Costs'!D68 -> 546449.22 | G7: 24 | H7: =$F7*G7 -> 13114781.28
A8: Nurse | B8: per minute | C8: =+'Unit Costs'!C60 -> 249.78 | D8: =30*D7 -> 720 | E8: =$C8*D8 -> 179841.6 | F8: =+'Unit Costs'!D60 -> 249.78 | G8: =30*G7 -> 720 | H8: =$F8*G8 -> 179841.6
A9: Doctor - Internist | B9: per minute | C9: =+'Unit Costs'!C57 -> 1887.11822 | D9: =10*D7 -> 240 | E9: 452908.3729 | F9: =+'Unit Costs'!D57 -> 1887.11822 | G9: =10*G7 -> 240 | H9: 452908.3729
A10: Doctor - Specialist | B10: per minute | C10: =+'Unit Costs'!C58 -> 2998.252676 | D10: 60 | E10: 179895.1606 | F10: =+'Unit Costs'!D58 -> 2998.252676 | G10: 60 | H10: 179895.1606
A11: N95 Mask | B11: per mask | C11: =+'Unit Costs'!C69 -> 29385 | D11: 2 | E11: 58770 | F11: =+'Unit Costs'!D69 -> 29385 | G11: 2 | H11: 58770
C12: =IF(A12="",0,VLOOKUP(A12,cost_lookup,3,FALSE)) -> 0 | E12: 0 | F12: =IF(B12="",0,VLOOKUP(B12,cost_lookup,3,FALSE)) -> 0 | H12: 0
C13: 0 | E13: 0 | F13: =IF(B13="",0,VLOOKUP(B13,cost_lookup,3,FALSE)) -> 0 | H13: 0
C14: 0 | E14: 0 | F14: =IF(B14="",0,VLOOKUP(B14,cost_lookup,3,FALSE)) -> 0 | H14: 0
C15: 0 | E15: 0 | F15: =IF(B15="",0,VLOOKUP(B15,cost_lookup,3,FALSE)) -> 0 | H15: 0
C16: 0 | E16: 0 | F16: =IF(B16="",0,VLOOKUP(B16,cost_lookup,3,FALSE)) -> 0 | H16: 0
A17: II. Outpatient consultations
A18: Consultation at Health center/satellite clinic | B18: =IF(A18="","",VLOOKUP(A18,cost_lookup,2,FALSE)) -> per visit | C18: =+'Unit Costs'!C64 -> 10269.97236 | D18: =24*4 -> 96 | E18: =$C18*D18 -> 985917.3463 | F18: =+'Unit Costs'!D64 -> 10269.97236 | G18: =24*4 -> 96 | H18: =$F18*G18 -> 985917.3463
A19: Consultation at Hospital | B19: per visit | C19: =+'Unit Costs'!C65 -> 56613.54661 | D19: 24 | E19: =$C19*D19 -> 1358725.119 | F19: =+'Unit Costs'!D65 -> 56613.54661 | G19: 24 | H19: 1358725.119
A20: DOTS at Health center / satellite clinic | B20: per DOTS visit | C20: =+'Unit Costs'!C66 -> 7493.4 | D20: =5*4*24 -> 480 | E20: 3596832 | F20: =+'Unit Costs'!D66 -> 7493.4 | G20: =5*4*24 -> 480 | H20: 3596832
A21: DOTS at Hospital | B21: per DOTS visit | C21: =+'Unit Costs'!C67 -> 7493.4 | D21: 0 | E21: 0 | F21: =+'Unit Costs'!D67 -> 7493.4 | G21: 0 | H21: 0
A22: N95 Mask | B22: per mask | C22: =+'Unit Costs'!C69 -> 29385 | D22: 2 | E22: 58770 | F22: =+'Unit Costs'!D69 -> 29385 | G22: 2 | H22: 58770
A23: Patient travel stipend | B23: per month per patient | C23: =+'Unit Costs'!C70 -> 400000 | D23: 24 | E23: 9600000 | F23: =+'Unit Costs'!D70 -> 600000 | G23: 24 | H23: 14400000
C24: =IF(A24="",0,VLOOKUP(A24,cost_lookup,3,FALSE)) -> 0 | E24: 0 | F24: =IF(B24="",0,VLOOKUP(B24,cost_lookup,3,FALSE)) -> 0 | H24: 0
C25: 0 | E25: 0 | F25: =IF(B25="",0,VLOOKUP(B25,cost_lookup,3,FALSE)) -> 0 | H25: 0
C26: 0 | E26: 0 | F26: =IF(B26="",0,VLOOKUP(B26,cost_lookup,3,FALSE)) -> 0 | H26: 0
C27: 0 | E27: 0 | F27: =IF(B27="",0,VLOOKUP(B27,cost_lookup,3,FALSE)) -> 0 | H27: 0
A28: III. Routine laboratory investigations
A29: Blood glucose | B29: =IF(A29="","",VLOOKUP(A29,cost_lookup,2,FALSE)) -> test | C29: =+'Unit Costs'!C14 -> 4369.07 | D29: 24 | E29: =$C29*D29 -> 104857.68 | F29: =+'Unit Costs'!D14 -> 4369.07 | G29: 24 | H29: =$F29*G29 -> 104857.68
A30: Total Bilirubin | B30: test | C30: =+'Unit Costs'!C37 -> 19169.06 | D30: 1 | E30: =$C30*D30 -> 19169.06 | F30: =+'Unit Costs'!D37 -> 19169.06 | G30: 1 | H30: 19169.06
A31: SGOT | B31: test | C31: =+'Unit Costs'!C32 -> 9064.1 | D31: 1 | E31: =$C31*D31 -> 9064.1 | F31: =+'Unit Costs'!D32 -> 9064.1 | G31: 1 | H31: 9064.1
A32: SGPT | B32: test | C32: =+'Unit Costs'!C33 -> 9064.1 | D32: 1 | E32: =$C32*D32 -> 9064.1 | F32: =+'Unit Costs'!D33 -> 9064.1 | G32: 1 | H32: 9064.1
A33: Creatinin | B33: test | C33: =+'Unit Costs'!C16 -> 2300.84 | D33: 10 | E33: =$C33*D33 -> 23008.4 | F33: =+'Unit Costs'!D16 -> 2300.84 | G33: 10 | H33: 23008.4
A34: Ureum | B34: test | C34: =+'Unit Costs'!C39 -> 6382.44 | D34: 10 | E34: =$C34*D34 -> 63824.4 | F34: =+'Unit Costs'!D39 -> 6382.44 | G34: 10 | H34: 63824.4
A35: Uric acid | B35: test | C35: =+'Unit Costs'!C40 -> 10334.72 | D35: 24 | E35: =$C35*D35 -> 248033.28 | F35: =+'Unit Costs'!D40 -> 10334.72 | G35: 24 | H35: 248033.28
A36: Electrolyte | B36: test | C36: =+'Unit Costs'!C22 -> 41000 | D36: 10 | E36: =$C36*D36 -> 410000 | F36: =+'Unit Costs'!D22 -> 41000 | G36: 10 | H36: 410000
A37: Thyroid Stimulating Hormone | B37: test | C37: =+'Unit Costs'!C36 -> 87600 | D37: 4 | E37: =$C37*D37 -> 350400 | F37: =+'Unit Costs'!D36 -> 87600 | G37: 4 | H37: 350400
A38: HbsAg | B38: test | C38: =+'Unit Costs'!C27 -> 40003.09 | D38: 1 | E38: 40003.09 | F38: =+'Unit Costs'!D27 -> 40003.09 | G38: 1 | H38: 40003.09
A39: HIV Test | B39: test | C39: =+'Unit Costs'!C28 -> 43600 | D39: 1 | E39: 43600 | F39: =+'Unit Costs'!D28 -> 43600 | G39: 1 | H39: 43600
A40: Pregnancy test | B40: test | C40: =+'Unit Costs'!C30 -> 23514.94 | E40: 0 | F40: =+'Unit Costs'!D30 -> 23514.94 | H40: 0
C41: =IF(A41="",0,VLOOKUP(A41,cost_lookup,3,FALSE)) -> 0 | E41: 0 | F41: =IF(B41="",0,VLOOKUP(B41,cost_lookup,3,FALSE)) -> 0 | H41: 0
C42: 0 | E42: 0 | F42: =IF(B42="",0,VLOOKUP(B42,cost_lookup,3,FALSE)) -> 0 | H42: 0
C43: 0 | E43: 0 | F43: =IF(B43="",0,VLOOKUP(B43,cost_lookup,3,FALSE)) -> 0 | H43: 0
A44: IV. Follow-up MDR-TB testing (for conversion)
A45: X-ray | B45: =IF(A45="","",VLOOKUP(A45,cost_lookup,2,FALSE)) -> x-ray | C45: =+'Unit Costs'!C41 -> 42616.49 | D45: =24/6 -> 4 | E45: =$C45*D45 -> 170465.96 | F45: =+'Unit Costs'!D41 -> 42616.49 | G45: =24/6 -> 4 | H45: =$F45*G45 -> 170465.96
A46: Sputum smear | B46: smear | C46: =+'Unit Costs'!C34 -> 4502.76 | D46: 24 | E46: =$C46*D46 -> 108066.24 | F46: =+'Unit Costs'!D34 -> 4502.76 | G46: 24 | H46: 108066.24
A47: Culture - Liquid | B47: test | C47: =+'Unit Costs'!C17 -> 300000 | D47: 0 | E47: 0 | F47: =+'Unit Costs'!D17 -> 300000 | G47: 0 | H47: 0
A48: DST - Liquid culture | B48: test | C48: =+'Unit Costs'!C19 -> 150000 | D48: 0 | E48: 0 | F48: =+'Unit Costs'!D19 -> 150000 | G48: 0 | H48: 0
A49: Culture - Solid | B49: test | C49: =+'Unit Costs'!C18 -> 225000 | D49: 24 | E49: 5400000 | F49: =+'Unit Costs'!D18 -> 225000 | G49: 24 | H49: 5400000
A50: DST - Solid culture | B50: test | C50: =+'Unit Costs'!C20 -> 150000 | D50: 0 | E50: 0 | F50: =+'Unit Costs'!D20 -> 150000 | G50: 0 | H50: 0
C51: =IF(A51="",0,VLOOKUP(A51,cost_lookup,3,FALSE)) -> 0 | E51: 0 | F51: =IF(B51="",0,VLOOKUP(B51,cost_lookup,3,FALSE)) -> 0 | H51: 0
C52: 0 | E52: 0 | F52: =IF(B52="",0,VLOOKUP(B52,cost_lookup,3,FALSE)) -> 0 | H52: 0
C53: 0 | E53: 0 | F53: =IF(B53="",0,VLOOKUP(B53,cost_lookup,3,FALSE)) -> 0 | H53: 0
C54: 0 | E54: 0 | F54: =IF(B54="",0,VLOOKUP(B54,cost_lookup,3,FALSE)) -> 0 | H54: 0
A56: TOTAL TREATMENT MONITORING COST PER PATIENT | E56: =SUM(E7:E54) -> 36585997.19 | H56: =SUM(H7:H54) -> 41385997.19
A58: TOTAL TREATMENT MON ITORING COST | C58: TREATMENT OPTION 1 | F58: TREATMENT OPTION 2
C59: % Completion | D59: # patients | E59: Cost | F59: % Completion | G59: # patients | H59: Cost
A60: PATIENTS NOT TRANSFERRED OUT
A61: Inpatient stay (assumed all patient are admitted) | C61: 1 | D61: =+'Treatment Outcome'!B12 -> 136 | E61: =+SUM(E6:E16)*D61*C61 -> 1902122712 | F61: 1 | G61: =+'Treatment Outcome'!C12 -> 136 | H61: =+SUM(H6:H16)*G61*F61 -> 1902122712
A62: Outpatient consultations for patients who complete | C62: =+Treatment!D$59 -> 1 | D62: =+'Treatment Outcome'!B7+'Treatment Outcome'!B8+'Treatment Outcome'!B9 -> 100 | E62: =+SUM(E17:E27)*D62*C62 -> 1560024447 | F62: 1 | G62: =+'Treatment Outcome'!C7+'Treatment Outcome'!C8+'Treatment Outcome'!C9 -> 107.168 | H62: =+SUM(H17:H27)*G62*F62 -> 2186253399
A63: Outpatient consultations for patients who do not complete | C63: =+Treatment!D$60 -> 0.5 | D63: =+'Treatment Outcome'!B10+'Treatment Outcome'!B11 -> 36 | E63: =+SUM(E17:E27)*D63*C63 -> 280804400.4 | F63: 0.5 | G63: =+'Treatment Outcome'!C10+'Treatment Outcome'!C11 -> 28.832 | H63: =+SUM(H17:H27)*G63*F63 -> 294089924.2
A64: Routine Laboratory investigations for patients who complete | C64: =+Treatment!D$59 -> 1 | D64: =+'Treatment Outcome'!B7+'Treatment Outcome'!B8+'Treatment Outcome'!B9 -> 100 | E64: =+SUM(E28:E43)*D64*C64 -> 132102411 | F64: 1 | G64: =+'Treatment Outcome'!C7+'Treatment Outcome'!C8+'Treatment Outcome'!C9 -> 107.168 | H64: =+SUM(H28:H43)*G64*F64 -> 141571511.8
A65: Routine Laboratory investigations for patients who do not complete | C65: =+Treatment!D$60 -> 0.5 | D65: =+'Treatment Outcome'!B10+'Treatment Outcome'!B11 -> 36 | E65: =+SUM(E28:E43)*D65*C65 -> 23778433.98 | F65: 0.5 | G65: =+'Treatment Outcome'!C10+'Treatment Outcome'!C11 -> 28.832 | H65: =+SUM(H28:H43)*G65*F65 -> 19043883.57
A66: Follow-up MDR-TB testing for patients who complete | C66: =+Treatment!D$59 -> 1 | D66: =+'Treatment Outcome'!B7+'Treatment Outcome'!B8+'Treatment Outcome'!B9 -> 100 | E66: =+SUM(E44:E54)*D66*C66 -> 567853220 | F66: 1 | G66: =+'Treatment Outcome'!C7+'Treatment Outcome'!C8+'Treatment Outcome'!C9 -> 107.168 | H66: =+SUM(H44:H54)*G66*F66 -> 608556938.8
A67: Follow-up MDR-TB testing for patients who do not complete | C67: =+Treatment!D$60 -> 0.5 | D67: =+'Treatment Outcome'!B10+'Treatment Outcome'!B11 -> 36 | E67: =+SUM(E44:E54)*D67*C67 -> 102213579.6 | F67: 0.5 | G67: =+'Treatment Outcome'!C10+'Treatment Outcome'!C11 -> 28.832 | H67: =+SUM(H44:H54)*G67*F67 -> 81861720.2
A68: TOTAL | E68: =+SUM(E61:E67) -> 4568899204 | H68: =+SUM(H61:H67) -> 5233500090
A70: PATIENTS TRANSFERRED OUT
A71: Inpatient stay (assumed all patient are admitted) | C71: 1 | D71: =+'Treatment Outcome'!B$13 -> 8 | E71: =+SUM(E6:E16)*D71*C71 -> 111889571.3 | F71: 1 | G71: =+'Treatment Outcome'!C$13 -> 8 | H71: =+SUM(H6:H16)*G71*F71 -> 111889571.3
A72: Outpatient consultations for patients who do not complete | C72: =+Treatment!D$60 -> 0.5 | D72: =+'Treatment Outcome'!B$13 -> 8 | E72: =+SUM(E17:E27)*D72*C72 -> 62400977.86 | F72: 0.5 | G72: =+'Treatment Outcome'!C$13 -> 8 | H72: =+SUM(H17:H27)*G72*F72 -> 81600977.86
A73: Routine Laboratory investigations for patients who do not complete | C73: =+Treatment!D$60 -> 0.5 | D73: =+'Treatment Outcome'!B$13 -> 8 | E73: =+SUM(E28:E43)*D73*C73 -> 5284096.44 | F73: 0.5 | G73: =+'Treatment Outcome'!C$13 -> 8 | H73: =+SUM(H28:H43)*G73*F73 -> 5284096.44
A74: Follow-up MDR-TB testing for patients who do not complete | C74: =+Treatment!D$60 -> 0.5 | D74: =+'Treatment Outcome'!B$13 -> 8 | E74: =+SUM(E44:E54)*D74*C74 -> 22714128.8 | F74: 0.5 | G74: =+'Treatment Outcome'!C$13 -> 8 | H74: =+SUM(H44:H54)*G74*F74 -> 22714128.8
A75: TOTAL | E75: =+SUM(E71:E74) -> 202288774.4 | H75: =+SUM(H71:H74) -> 221488774.4

Sheet Treatment Outcome
A1: TREATMENT OUTCOMES
A2: =tool_name -> MDR-TB COST EFFECTIVENESS ANALYSIS TOOL
A5: Element | B5: TREATMENT OPTION 1 | C5: TREATMENT OPTION 2 | D5: OPTION 1 PERCENT | E5: OPTION 2 PERCENT
A6: Total number of patients in yearly cohort | B6: 144 | C6: =+B$6*E6 -> 144 | D6: =+B6/B$6 -> 1 | E6: 1
A7: Number of patients cured | B7: 68 | C7: =+B$6*E7 -> 75.168 | D7: =+B7/B$6 -> 0.4722222222 | E7: 0.522 | F7: Changed
A8: Number of patients completed treatment | B8: 3 | C8: 3 | D8: 0.02083333333 | E8: 0.02083333333
A9: Number of patients failed | B9: 29 | C9: 29 | D9: 0.2013888889 | E9: 0.2013888889
A10: Number of patients died | B10: 14 | C10: 14 | D10: 0.09722222222 | E10: 0.09722222222
A11: Number of patients defaulted | B11: 22 | C11: 14.832 | D11: 0.1527777778 | E11: 0.103 | F11: Changed
A12: Total patients assumed cured or not cured (ex transfers out) | B12: =+SUM(B7:B11) -> 136 | C12: =+SUM(C7:C11) -> 136 | D12: 0.9444444444 | E12: 0.9444444444
A13: Number of patients transferred out | B13: 8 | C13: 8 | D13: 0.05555555556 | E13: 0.05555555556
A15: Number of patients HIV+ | B15: 7 | C15: 7 | D15: 0.04861111111 | E15: 0.04861111111
A16: Number of patients HIV- | B16: 137 | C16: 137 | D16: 0.9513888889 | E16: 0.9513888889
A18: Estimated MDR-TB self-cure rate, HIV+ (%) | B18: 0 | C18: 0 | D18: 0 | E18: 0
A19: Estimated MDR-TB self-cure rate, HIV- (%) | B19: 0.2 | C19: 0.2 | D19: 0.2 | E19: 0.2
A21: Cure rates of patients not transferred out | B21: =+(B7+B8)/B12 -> 0.5220588235 | C21: =+(C7+C8)/C12 -> 0.5747647059
A23: Note 1: the patient cohort shown above is for 2009

Sheet Calculations
A1: CALCULATIONS
A2: =tool_name -> MDR-TB COST EFFECTIVENESS ANALYSIS TOOL
B4: =+'Unit Costs'!B7 -> 2011 | C4: =+'Unit Costs'!B7 -> 2011
A5: Element | B5: TREATMENT OPTION 1 | C5: TREATMENT OPTION 2
A6: ="I. Costs ("&currency&")" -> I. Costs (IDR)
A7: Diagnosis Cost | B7: =Diagnosis!E45 -> 1260459.59 | C7: =Diagnosis!H45 -> 1260459.59
A8: Treatment Cost | B8: =Treatment!F56 -> 16897112.32 | C8: =Treatment!I56 -> 16897112.32
A9: Treatment Monitoring Cost | B9: ='Treatment Monitoring'!E56 -> 36585997.19 | C9: ='Treatment Monitoring'!H56 -> 41385997.19
A10: Average Cost of MDR-TB Treatment per Patient Fully Treated | B10: =SUM(B7:B9) -> 54743569.1 | C10: =SUM(C7:C9) -> 59543569.1
A12: II. Outcomes
A13: % of patients cured | B13: ='Treatment Outcome'!B7/'Treatment Outcome'!$B$12 -> 0.5 | C13: ='Treatment Outcome'!C7/'Treatment Outcome'!$B$12 -> 0.5527058824
A14: % of patients completed treatment | B14: ='Treatment Outcome'!B8/'Treatment Outcome'!$B$12 -> 0.02205882353 | C14: ='Treatment Outcome'!C8/'Treatment Outcome'!$B$12 -> 0.02205882353
A15: % of patients failed | B15: ='Treatment Outcome'!B9/'Treatment Outcome'!$B$12 -> 0.2132352941 | C15: ='Treatment Outcome'!C9/'Treatment Outcome'!$B$12 -> 0.2132352941
A16: % of patients died | B16: ='Treatment Outcome'!B10/'Treatment Outcome'!$B$12 -> 0.1029411765 | C16: ='Treatment Outcome'!C10/'Treatment Outcome'!$B$12 -> 0.1029411765
A17: % of patients defaulted | B17: ='Treatment Outcome'!B11/'Treatment Outcome'!$B$12 -> 0.1617647059 | C17: ='Treatment Outcome'!C11/'Treatment Outcome'!$B$12 -> 0.1090588235
A18: Total Outcomes | B18: =+SUM(B13:B17) -> 1 | C18: =+SUM(C13:C17) -> 1
A20: % of cohort patients transferred out | B20: ='Treatment Outcome'!B13/'Treatment Outcome'!$B$6 -> 0.05555555556 | C20: ='Treatment Outcome'!C13/'Treatment Outcome'!$B$6 -> 0.05555555556
A22: % of patients HIV+ | B22: ='Treatment Outcome'!B15/'Treatment Outcome'!$B$6 -> 0.04861111111 | C22: ='Treatment Outcome'!C15/'Treatment Outcome'!$C$6 -> 0.04861111111
A23: % of patients HIV- | B23: ='Treatment Outcome'!B16/'Treatment Outcome'!$B$6 -> 0.9513888889 | C23: ='Treatment Outcome'!C16/'Treatment Outcome'!$C$6 -> 0.9513888889
A25: Minimum cure rate | B25: =B13+B14 -> 0.5220588235 | C25: =C13+C14 -> 0.5747647059
A26: Maximum cure rate | B26: =(B13+B14)+(((B13+B14)/(100-B17-B19))*(B17+B19)) -> 0.5229046988 | C26: =(C13+C14)+(((C13+C14)/(100-C17-C19))*(C17+C19)) -> 0.5753922219
A27: Estimated self-cure rate, HIV+ | B27: ='Treatment Outcome'!B18 -> 0 | C27: ='Treatment Outcome'!C18 -> 0
A28: Estimated self-cure rate, HIV- | B28: ='Treatment Outcome'!B19 -> 0.2 | C28: ='Treatment Outcome'!C19 -> 0.2
A31: SUMMARY
A33: TOTAL PROGRAM COSTS | B33: TREATMENT OPTION 1 | C33: TREATMENT OPTION 2
A34: TOTAL COST FOR ALL PATIENTS EXCLUDING TRANSFERS OUT
A35: Diagnosis | B35: =+Diagnosis!E47 -> 171422504.3 | C35: =+Diagnosis!H47 -> 171422504.3
A36: Treatment | B36: =+Treatment!F61 -> 1993859254 | C36: =+Treatment!I61 -> 2054418504
A37: Treatment Monitoring | B37: =+'Treatment Monitoring'!E68 -> 4568899204 | C37: =+'Treatment Monitoring'!H68 -> 5233500090
A38: TOTAL | B38: =SUM(B35:B37) -> 6734180962 | C38: =SUM(C35:C37) -> 7459341098
A39: TOTAL COST FOR ALL PATIENTS TRANSFERRED OUT
A40: Diagnosis | B40: =+Diagnosis!E49 -> 10083676.72 | C40: =+Diagnosis!H49 -> 10083676.72
A41: Treatment | B41: =+Treatment!F62 -> 67588449.27 | C41: =+Treatment!I62 -> 67588449.27
A42: Treatment Monitoring | B42: =+'Treatment Monitoring'!E75 -> 202288774.4 | C42: =+'Treatment Monitoring'!H75 -> 221488774.4
A43: TOTAL | B43: =SUM(B40:B42) -> 279960900.4 | C43: =SUM(C40:C42) -> 299160900.4
A44: TOTAL PROGRAM COSTS | B44: =+B38+B43 -> 7014141862 | C44: =+C38+C43 -> 7758501998
A46: COST PER PATIENT | B46: TREATMENT OPTION 1 | C46: TREATMENT OPTION 2
A47: Individual cost per patient fully treated | B47: =+B10 -> 54743569.1 | C47: =+C10 -> 59543569.1
A48: Total program cost per patient fully treated | B48: =+B38/('Treatment Outcome'!B7+'Treatment Outcome'!B8+'Treatment Outcome'!B9) -> 67341809.62 | C48: =+C38/('Treatment Outcome'!C7+'Treatment Outcome'!C8+'Treatment Outcome'!C9) -> 69604183.13
A49: Total program cost per patient cured | B49: =+B38/('Treatment Outcome'!B7+'Treatment Outcome'!B8) -> 94847619.18 | C49: =+C38/('Treatment Outcome'!C7+'Treatment Outcome'!C8) -> 95427043.01
A51: COST PER DEATH AVERTED | B51: TREATMENT OPTION 1 | C51: TREATMENT OPTION 2
A52: Total patients assumed cured or not cured (ex transfers out) | B52: =+'Treatment Outcome'!B12 -> 136 | C52: =+'Treatment Outcome'!C12 -> 136
A53: Number of people cured | B53: =+'Treatment Outcome'!B7+'Treatment Outcome'!B8 -> 71 | C53: =+'Treatment Outcome'!C7+'Treatment Outcome'!C8 -> 78.168
A54: Number of patients assumed HIV+ | B54: =+'Treatment Outcome'!B15*'Treatment Outcome'!B12/'Treatment Outcome'!B6 -> 6.611111111 | C54: =+'Treatment Outcome'!C15*'Treatment Outcome'!C12/'Treatment Outcome'!C6 -> 6.611111111
A55: Number of patients assumed HIV- | B55: =+'Treatment Outcome'!B16*'Treatment Outcome'!B12/'Treatment Outcome'!B6 -> 129.3888889 | C55: =+'Treatment Outcome'!C16*'Treatment Outcome'!C12/'Treatment Outcome'!C6 -> 129.3888889
A56: Number of people who would have self-cured | B56: =+B55*B28 -> 25.87777778 | C56: =+C55*C28 -> 25.87777778
A57: Number of deaths averted | B57: =+B53-B56 -> 45.12222222 | C57: =+C53-C56 -> 52.29022222
A58: Average program cost per death averted | B58: =+B38/B57 -> 149243114.1 | C58: =+C38/C57 -> 142652694.5
A60: Note the patient numbers are from 2009 and the prices are from 2011

Sheet Results
A1: RESULTS
A2: =tool_name -> MDR-TB COST EFFECTIVENESS ANALYSIS TOOL
B4: =currency -> IDR | D4: USD
B5: TREATMENT OPTION 1 | C5: TREATMENT OPTION 2 | D5: TREATMENT OPTION 1 | E5: TREATMENT OPTION 2
A7: Total program cost | B7: =+Calculations!B38 -> 6734180962 | C7: =+Calculations!C38 -> 7459341098 | D7: =B7/currency_conversion -> 687512.0941 | E7: =C7/currency_conversion -> 761545.7987
E8: =C8/currency_conversion -> 0
A9: Average individual cost per patient fully treated / cured | B9: =Calculations!B10 -> 54743569.1 | C9: =Calculations!C10 -> 59543569.1 | D9: =B9/currency_conversion -> 5588.929974 | E9: =C9/currency_conversion -> 6078.975916
A10: Average program cost per patient cured | B10: =+Calculations!B49 -> 94847619.18 | C10: =+Calculations!C49 -> 95427043.01 | D10: =B10/currency_conversion -> 9683.268931 | E10: =C10/currency_conversion -> 9742.423993
A11: Average program cost per death averted | B11: =+Calculations!B58 -> 149243114.1 | C11: =+Calculations!C58 -> 142652694.5 | D11: =B11/currency_conversion -> 15236.66301 | E11: =C11/currency_conversion -> 14563.82793
